bitfinex-derivatives/quotes_ETHF0:USTF0_20250104
["timestamp","ask_amount","ask_price","bid_price","bid_amount"]
[1736018269275,0.8578,3637.0,3636.3,9.64465583]
[1736018269478,0.8578,3637.0,3636.7,0.275]
[1736018269669,0.8578,3637.0,3636.3,9.64465583]
[1736018269871,3.2078,3637.5,3636.4,2.21754303]
[1736018270076,0.27497,3637.3,3636.8,0.275]
[1736018270273,4.0694,3637.5,3637.0,2.21754303]
[1736018270470,0.27495,3637.6,3637.3,0.27496]
[1736018270665,3.2078,3637.9,3637.5,0.27495]
[1736018270871,3.2078,3637.9,3637.4,0.27496]
[1736018271090,0.27495,3637.6,3637.4,0.27496]
[1736018271882,0.27492,3637.9,3637.7,0.27493]
[1736018272276,1.2952,3638.1,3637.4,3.6496]
[1736018272477,0.8484,3638.1,3638.0,0.27491]
[1736018272679,1.12331,3638.1,3637.6,2.21754303]
[1736018272877,0.8484,3638.1,3637.7,0.4248]
[1736018273077,0.8484,3638.1,3637.9,0.27492]
[1736018273078,1.12331,3638.1,3637.9,0.27492]
[1736018273282,0.2749,3638.2,3637.7,0.4248]
[1736018273482,0.8668,3638.5,3637.9,5.42534303]
[1736018273675,0.8668,3638.5,3638.2,0.27489]
[1736018273879,0.27489,3638.4,3638.2,0.27489]
[1736018274180,0.44,3638.7,3638.3,3.2078]
[1736018274481,0.44,3638.7,3638.4,0.4377]
[1736018274683,0.8956,3639.0,3638.6,0.27486]
[1736018274889,0.27485,3638.9,3638.6,0.27486]
[1736018275183,0.8956,3639.0,3638.4,0.4377]
[1736018275371,0.27486,3638.7,3638.4,0.71258]
[1736018275782,0.8956,3639.0,3638.4,0.71258]
[1736018276085,0.27486,3638.7,3638.4,0.71258]
[1736018276583,0.27487,3638.6,3638.4,0.71258]
[1736018277378,0.27487,3638.6,3638.4,0.4377]
[1736018277574,2.21754303,3638.7,3638.1,6.43685583]
[1736018277881,0.4314,3638.5,3638.1,6.43685583]
[1736018278184,0.27488,3638.4,3638.1,6.71175583]
[1736018278387,0.4314,3638.5,3638.1,6.43685583]
[1736018278584,0.27489,3638.3,3638.1,6.43685583]
[1736018279284,0.27489,3638.3,3638.0,0.27491]
[1736018279480,0.2749,3638.2,3638.0,0.27491]
[1736018279686,3.6392,3638.5,3637.7,6.43685583]
[1736018279983,0.27493,3637.8,3637.7,6.43685583]
[1736018280385,0.27492,3637.9,3637.7,6.43685583]
[1736018280682,0.27493,3637.8,3637.7,6.43685583]
[1736018280883,0.27492,3637.9,3637.7,6.43685583]
[1736018281282,0.406,3638.3,3637.7,6.43685583]
[1736018281484,0.27494,3637.7,3637.5,3.2078]
[1736018282082,0.4214,3637.8,3637.5,3.2078]
[1736018282083,0.27494,3637.6,3637.5,3.2078]
[1736018282284,0.27495,3637.5,3637.4,6.43685583]
[1736018282590,0.27496,3637.4,3637.3,6.43685583]
[1736018283492,0.27496,3637.4,3637.3,5.82164394]
[1736018284280,0.27496,3637.4,3637.3,5.14624394]
[1736018284887,3.07354303,3637.6,3637.1,3.2078]
[1736018284888,0.27497,3637.2,3637.1,3.2078]
[1736018286994,0.27501,3636.7,3636.6,6.43685583]
[1736018287190,0.4059,3637.1,3636.6,6.43685583]
[1736018287493,0.27501,3636.7,3636.6,6.43685583]
[1736018288087,0.4059,3637.1,3636.5,6.43685583]
[1736018288288,0.27502,3636.6,3636.5,6.43685583]
[1736018290701,0.27501,3636.7,3636.4,0.27503]
[1736018292497,0.8392,3636.9,3636.3,6.43685583]
[1736018292703,0.27502,3636.6,3636.3,6.43685583]
[1736018293101,0.27502,3636.6,3636.4,0.27503]
[1736018293797,0.27502,3636.6,3636.3,6.43685583]
[1736018293998,0.27502,3636.6,3636.3,6.71189583]
[1736018294400,0.8392,3636.9,3636.3,6.71189583]
[1736018294401,0.27503,3636.5,3636.3,6.71189583]
[1736018294894,0.27503,3636.5,3636.3,6.43685583]
[1736018295091,0.27503,3636.4,3636.3,6.43685583]
[1736018295288,0.68293,3636.4,3636.3,6.43685583]
[1736018295689,0.27504,3636.3,3636.2,6.43685583]
[1736018297002,3.6157,3636.4,3635.8,0.27507]
[1736018297202,0.27507,3636.0,3635.8,0.27507]
[1736018297388,0.27507,3636.0,3635.8,0.27508]
[1736018297595,0.27507,3636.0,3635.7,6.43685583]
[1736018297795,0.27507,3636.0,3635.8,0.27508]
[1736018299010,3.6157,3636.4,3635.7,6.43685583]
[1736018299412,0.27508,3635.8,3635.7,6.43685583]
[1736018299807,5.83324303,3636.4,3635.6,9.64465583]
[1736018299808,0.8497,3636.2,3635.6,9.64465583]
[1736018300011,3.2078,3636.4,3635.7,0.27509]
[1736018300219,3.2078,3636.4,3635.6,9.64465583]
[1736018300406,0.27507,3635.9,3635.7,0.27508]
[1736018301112,3.2078,3636.4,3635.6,9.64465583]
[1736018301508,0.27508,3635.8,3635.6,9.91974583]
[1736018302310,0.27507,3636.0,3635.6,9.64465583]
[1736018302510,3.2078,3636.4,3635.7,0.27509]
[1736018302713,0.27507,3635.9,3635.7,0.27509]
[1736018303017,0.27508,3635.8,3635.6,9.91974583]
[1736018303314,3.2078,3636.4,3635.6,9.64465583]
[1736018303514,0.68761,3636.3,3635.6,9.91974583]
[1736018303815,0.27509,3635.7,3635.6,9.64465583]
[1736018304610,0.27509,3635.7,3635.6,3.2078]
[1736018304920,0.27509,3635.6,3635.5,6.43685583]
[1736018305620,2.49263303,3635.6,3635.5,6.43685583]
[1736018307012,7.49263303,3635.6,3635.5,4.41065583]
[1736018307915,0.27517,3634.6,3634.5,0.8457]
[1736018311021,3.6482,3634.7,3633.8,3.2078]
[1736018311219,0.2752,3634.3,3634.2,0.2752]
[1736018311417,3.6482,3634.7,3633.9,0.8727]
[1736018311620,0.2752,3634.2,3634.0,0.27521]
[1736018311925,0.27521,3634.1,3633.9,1.14792]
[1736018312619,3.6482,3634.7,3633.9,0.8727]
[1736018312816,0.2752,3634.2,3633.9,0.8727]
[1736018313221,0.2752,3634.3,3634.0,0.27521]
[1736018313623,3.6482,3634.7,3634.0,0.27521]
[1736018314328,0.2752,3634.3,3634.0,0.27521]
[1736018314923,0.2752,3634.2,3634.0,0.27521]
[1736018315332,3.6482,3634.7,3633.9,0.8727]
[1736018315736,0.2752,3634.2,3633.9,1.14792]
[1736018316235,0.27522,3634.0,3633.9,0.8727]
[1736018316639,0.27521,3634.1,3633.9,0.8727]
[1736018317139,2.10942212,3634.5,3633.9,0.8727]
[1736018317640,0.27522,3634.0,3633.9,0.8727]
[1736018318040,0.27521,3634.1,3633.9,0.8727]
[1736018318338,0.27521,3634.1,3633.8,0.27522]
[1736018318640,0.27521,3634.1,3633.9,0.70672]
[1736018318842,2.10942212,3634.5,3633.9,0.4315]
[1736018319138,0.2752,3634.2,3634.0,0.27522]
[1736018319339,2.10942212,3634.5,3634.0,0.27522]
[1736018319535,0.27521,3634.1,3634.0,0.27522]
[1736018320338,2.10942212,3634.5,3633.9,0.4315]
[1736018320541,0.27521,3634.1,3634.0,0.27521]
[1736018322334,0.2752,3634.2,3634.1,0.2752]
[1736018324943,0.27521,3634.1,3634.0,0.27521]
[1736018325344,3.6482,3634.7,3633.9,0.4315]
[1736018325546,0.27522,3634.0,3633.9,0.70672]
[1736018326336,3.6482,3634.7,3633.9,0.4315]
[1736018326337,3.2078,3634.7,3633.9,0.4315]
[1736018326538,3.2078,3634.7,3634.3,2.21754303]
[1736018326741,3.2078,3634.7,3634.6,0.27517]
[1736018327045,0.27516,3634.8,3634.7,0.27516]
[1736018327439,3.6173,3635.2,3634.6,0.27517]
[1736018328345,0.27516,3634.7,3634.6,0.27517]
[1736018328541,3.6173,3635.2,3634.4,0.8601]
[1736018328745,0.27518,3634.6,3634.5,0.27517]
[1736018330547,0.27518,3634.5,3634.4,0.4395]
[1736018330847,0.27518,3634.5,3634.4,0.71468]
[1736018331045,0.27518,3634.5,3634.4,0.4395]
[1736018331943,1.083,3634.9,3634.4,0.4395]
[1736018332146,0.27516,3634.8,3634.7,0.27516]
[1736018332840,0.27516,3634.7,3634.6,0.27517]
[1736018333042,1.083,3635.0,3634.7,0.27516]
[1736018333043,0.27516,3634.8,3634.7,0.27516]
[1736018333244,4.30512,3635.2,3634.6,2.21754303]
[1736018333245,3.2078,3635.2,3634.6,2.21754303]
[1736018333437,3.2078,3635.2,3635.1,0.27513]
[1736018333647,0.27509,3635.7,3635.6,0.27509]
[1736018333837,0.27509,3635.6,3635.5,0.2751]
[1736018334049,3.2078,3635.9,3635.2,3.2078]
[1736018334241,0.27511,3635.4,3635.3,0.27511]
[1736018334448,0.27512,3635.3,3635.2,3.2078]
[1736018334638,3.6187,3635.9,3634.8,3.2078]
[1736018334948,0.27512,3635.3,3635.2,0.27512]
[1736018335150,0.27513,3635.2,3634.9,0.27515]
[1736018335448,0.27513,3635.2,3634.8,3.2078]
[1736018335449,0.27513,3635.2,3635.1,0.27513]
[1736018335748,0.27513,3635.2,3635.0,0.27514]
[1736018336045,0.27513,3635.2,3634.8,3.2078]
[1736018336247,0.27513,3635.2,3635.0,0.27514]
[1736018336842,0.886,3635.7,3634.9,5.59118903]
[1736018337037,0.886,3635.7,3635.2,0.27512]
[1736018337038,0.27511,3635.4,3635.2,0.27512]
[1736018337238,0.27512,3635.3,3635.1,0.27513]
[1736018337443,0.886,3635.7,3634.9,5.59118903]
[1736018337643,3.10354303,3635.7,3634.9,5.59118903]
[1736018337844,3.10354303,3635.7,3634.8,3.2078]
[1736018337845,3.10354303,3635.7,3635.0,0.27514]
[1736018338049,3.10354303,3635.7,3634.8,3.2078]
[1736018338050,0.27509,3635.6,3634.8,3.2078]
[1736018338250,0.27513,3635.1,3634.9,0.27514]
[1736018338451,0.27513,3635.1,3634.8,3.2078]
[1736018338742,0.27513,3635.2,3635.0,0.27514]
[1736018338948,0.27513,3635.1,3634.9,0.27514]
[1736018339148,3.10354303,3635.7,3634.8,3.2078]
[1736018339346,2.21754303,3635.4,3634.7,0.8711]
[1736018339548,2.21754303,3635.4,3634.7,0.4466]
[1736018339549,0.27515,3634.8,3634.7,0.4466]
[1736018340643,0.27518,3634.5,3634.4,11.76122321]
[1736018340952,0.27518,3634.5,3634.4,8.55342321]
[1736018341348,0.27517,3634.6,3633.9,11.76122321]
[1736018341650,0.27521,3634.1,3633.9,11.76122321]
[1736018341845,0.27522,3634.0,3633.9,11.76122321]
[1736018342344,0.27522,3634.0,3633.9,8.55342321]
[1736018342545,0.4236,3634.3,3633.8,4.29866766]
[1736018342546,0.27522,3633.9,3633.8,4.29866766]
[1736018344153,0.27522,3634.0,3633.8,0.27523]
[1736018344452,0.27519,3634.4,3634.1,0.2752]
[1736018344646,1.086,3634.9,3634.0,5.42534303]
[1736018344845,2.21754303,3635.1,3634.1,0.8252]
[1736018345045,0.27519,3634.4,3634.1,1.1004]
[1736018345244,0.27517,3634.6,3634.4,0.27518]
[1736018345448,3.30354303,3635.1,3634.3,4.29866766]
[1736018345746,0.27518,3634.4,3634.3,4.29866766]
[1736018346855,0.27519,3634.3,3634.2,4.29866766]
[1736018348953,0.4497,3634.6,3634.2,5.61721768]
[1736018349252,0.27519,3634.3,3634.2,5.61721768]
[1736018351154,0.27519,3634.3,3634.2,4.30996794]
[1736018352457,0.2752,3634.2,3634.1,4.30996794]
[1736018353159,1.086,3634.4,3634.1,5.62155582]
[1736018353357,0.2752,3634.2,3634.1,5.62155582]
[1736018353558,0.27518,3634.5,3634.4,0.27518]
[1736018353857,0.27519,3634.4,3634.2,0.4278]
[1736018354062,0.27519,3634.3,3634.2,0.703]
[1736018354559,0.4192,3634.7,3634.2,0.4278]
[1736018354750,0.4192,3634.7,3634.3,0.68169]
[1736018354954,0.27518,3634.4,3634.3,0.68169]
[1736018356160,0.27518,3634.5,3634.4,0.27518]
[1736018356362,1.086,3634.9,3634.3,6.46638029]
[1736018356559,0.27518,3634.5,3634.4,0.27518]
[1736018357157,0.27518,3634.5,3634.4,5.89796029]
[1736018358165,1.086,3634.9,3634.4,5.62278029]
[1736018358355,1.086,3634.9,3634.5,0.27517]
[1736018358556,0.27517,3634.6,3634.5,0.27517]
[1736018359252,0.27517,3634.6,3634.5,5.89795029]
[1736018359455,1.086,3634.9,3634.5,5.62278029]
[1736018359664,0.27517,3634.7,3634.6,0.27517]
[1736018360165,1.086,3634.9,3634.5,5.62278029]
[1736018360352,0.27517,3634.6,3634.5,5.62278029]
[1736018360661,0.27518,3634.4,3634.3,9.39702321]
[1736018361167,0.27518,3634.4,3634.3,6.45845693]
[1736018361355,1.086,3634.9,3634.3,6.73364693]
[1736018361560,0.27518,3634.4,3634.3,6.73364693]
[1736018361755,0.27518,3634.4,3634.3,6.02135693]
[1736018365768,0.27518,3634.4,3634.3,0.4065]
[1736018366265,0.27518,3634.4,3634.3,0.68169]
[1736018366467,0.27518,3634.4,3634.3,0.4065]
[1736018366661,0.27518,3634.4,3634.3,0.68169]
[1736018367062,0.27518,3634.4,3634.3,0.4065]
[1736018367869,0.27521,3634.1,3634.0,0.27521]
[1736018368062,0.27521,3634.1,3634.0,0.4113]
[1736018369772,0.27521,3634.1,3634.0,12.50225706]
[1736018370673,0.27521,3634.1,3634.0,6.03212804]
[1736018371968,0.27521,3634.1,3634.0,12.50225706]
[1736018372976,0.27521,3634.1,3634.0,6.03212804]
[1736018373177,0.27521,3634.1,3634.0,5.62082804]
[1736018374074,3.06194303,3634.3,3633.8,4.31291739]
[1736018374276,0.27522,3633.9,3633.8,4.31291739]
[1736018374664,0.69462,3633.9,3633.8,4.31291739]
[1736018375367,0.4194,3633.9,3633.7,4.31291739]
[1736018375679,0.27523,3633.8,3633.7,4.58815739]
[1736018376374,0.27523,3633.8,3633.7,5.61847458]
[1736018377179,0.27524,3633.7,3633.6,6.47012902]
[1736018378080,2.49278303,3633.7,3633.6,6.47012902]
[1736018378681,2.49278303,3633.7,3633.6,4.31159918]
[1736018379171,7.49278303,3633.7,3633.6,3.63629918]
[1736018379679,7.49278303,3633.7,3633.6,3.02360918]
[1736018379880,2.49278303,3633.7,3633.6,3.02360918]
[1736018380473,2.93278303,3633.7,3633.6,0.69180918]
[1736018380678,2.93278303,3633.7,3632.6,7.30722902]
[1736018380679,0.27531,3632.7,3632.6,7.30722902]
[1736018381676,0.27531,3632.7,3632.6,0.8371]
[1736018383075,0.27534,3632.3,3632.2,6.47012902]
[1736018383474,3.2078,3632.7,3632.2,6.47012902]
[1736018383673,0.27533,3632.5,3632.3,0.27534]
[1736018384276,0.27533,3632.6,3632.5,0.27533]
[1736018384576,0.27532,3632.6,3632.4,0.27533]
[1736018385175,0.27532,3632.6,3632.5,0.27533]
[1736018385378,0.27532,3632.6,3632.4,0.27533]
[1736018385580,3.2078,3632.7,3632.3,0.27534]
[1736018385878,0.27533,3632.6,3632.4,0.27533]
[1736018386068,3.2078,3632.7,3632.4,0.27533]
[1736018386271,0.27533,3632.5,3632.4,0.27533]
[1736018386978,0.27531,3632.8,3632.7,0.27531]
[1736018387774,1.087,3632.9,3632.6,0.27532]
[1736018387976,0.27531,3632.7,3632.4,3.2078]
[1736018388175,1.087,3633.0,3632.4,3.2078]
[1736018388378,3.2078,3633.7,3632.8,3.2078]
[1736018388578,0.27526,3633.5,3633.0,0.27529]
[1736018388980,0.27526,3633.5,3633.3,0.27526]
[1736018389182,3.2078,3633.7,3632.9,0.8625]
[1736018389479,0.27527,3633.3,3633.2,0.27527]
[1736018389681,3.2078,3633.7,3633.0,0.27529]
[1736018389682,0.27527,3633.4,3633.0,0.27529]
[1736018389881,3.2078,3633.7,3633.2,0.27527]
[1736018390080,0.27527,3633.3,3633.2,0.27527]
[1736018390382,0.27529,3633.0,3632.9,1.1378]
[1736018391183,0.27529,3633.0,3632.9,0.8625]
[1736018393083,0.96354,3633.0,3632.3,6.74546902]
[1736018393383,0.27533,3632.6,3632.5,0.27532]
[1736018393880,0.27533,3632.5,3632.4,1.13213]
[1736018394274,2.21754303,3633.1,3632.4,0.8568]
[1736018394472,0.27533,3632.6,3632.5,0.27533]
[1736018395673,1.087,3633.2,3632.4,0.8568]
[1736018395878,0.27528,3633.1,3632.8,0.2753]
[1736018396081,0.2753,3632.9,3632.8,0.2753]
[1736018396484,1.087,3633.2,3632.6,0.27532]
[1736018396685,0.27532,3632.6,3632.5,0.27533]
[1736018396885,0.27532,3632.7,3632.5,0.27533]
[1736018397390,0.27532,3632.6,3632.5,0.27533]
[1736018399589,0.27532,3632.6,3632.5,0.68543]
[1736018399990,0.27532,3632.6,3632.5,0.4101]
[1736018400983,2.21754303,3632.8,3632.4,0.8568]
[1736018401282,0.27533,3632.5,3632.4,0.8568]
[1736018405193,0.27533,3632.5,3632.4,1.13214]
[1736018406393,0.2753,3632.9,3632.8,0.2753]
[1736018406588,0.27529,3633.1,3632.5,0.68833]
[1736018406788,0.2753,3632.9,3632.8,0.2753]
[1736018406988,3.2078,3633.3,3632.8,0.27531]
[1736018407295,0.2753,3633.0,3632.9,0.2753]
[1736018409093,0.27529,3633.1,3632.7,0.27531]
[1736018409288,0.27529,3633.1,3633.0,0.27529]
[1736018409685,0.27528,3633.2,3632.8,0.27531]
[1736018409891,3.2078,3633.3,3632.8,0.27531]
[1736018409892,0.27531,3632.9,3632.8,0.27531]
[1736018411095,0.2753,3633.0,3632.9,0.2753]
[1736018412899,0.27531,3632.9,3632.8,0.27531]
[1736018413401,0.27531,3632.9,3632.8,6.74543902]
[1736018413898,0.27531,3632.9,3632.8,6.47012902]
[1736018414596,0.27531,3632.7,3632.6,9.67792902]
[1736018414797,0.27531,3632.7,3632.6,9.95324902]
[1736018414999,0.27531,3632.7,3632.6,9.67792902]
[1736018415396,0.27531,3632.7,3632.6,15.19286654]
[1736018416708,0.27531,3632.7,3632.6,8.72273752]
[1736018418109,0.27531,3632.7,3632.6,8.99805752]
[1736018418611,1.089,3633.1,3632.6,8.72273752]
[1736018418804,3.2078,3633.3,3633.2,0.27528]
[1736018419107,3.2078,3633.8,3633.0,5.42534303]
[1736018419306,3.2078,3633.8,3633.7,0.27524]
[1736018419704,3.2078,3633.8,3633.1,1.2703]
[1736018419906,3.48304,3633.8,3633.6,0.27524]
[1736018420105,3.2078,3633.8,3633.7,0.70634]
[1736018420509,3.48303,3633.8,3633.7,0.4311]
[1736018420711,3.48303,3633.8,3633.7,6.90621811]
[1736018421210,3.2078,3633.8,3633.7,7.18145811]
[1736018421714,3.2078,3633.8,3633.7,12.69639563]
[1736018423212,1.089,3634.3,3634.0,0.27521]
[1736018423412,0.2752,3634.2,3634.1,0.8854]
[1736018424512,0.2752,3634.2,3634.1,6.40033752]
[1736018426014,3.48298,3634.5,3634.4,0.27518]
[1736018426308,3.2078,3634.5,3634.1,6.40033752]
[1736018426510,3.2078,3634.5,3634.2,0.2752]
[1736018426511,0.2752,3634.3,3634.2,0.2752]
[1736018427411,0.2752,3634.3,3634.2,5.79013752]
[1736018427615,0.2752,3634.3,3634.2,5.51493752]
[1736018428706,2.21754303,3634.4,3634.1,6.47511811]
[1736018428912,2.21754303,3634.4,3633.9,6.47511811]
[1736018428913,0.27522,3634.0,3633.9,6.47511811]
[1736018429117,5.70056303,3634.0,3633.9,6.47511811]
[1736018430117,2.49276303,3634.0,3633.9,6.47511811]
[1736018430514,0.27521,3634.2,3634.0,0.27521]
[1736018431212,0.27521,3634.2,3633.9,6.47511811]
[1736018431412,0.27521,3634.2,3634.0,0.27521]
[1736018432213,3.2078,3634.4,3633.9,9.68291811]
[1736018432417,0.27519,3634.3,3633.9,9.68291811]
[1736018432616,0.27519,3634.3,3633.9,3.2078]
[1736018432817,5.42534303,3634.4,3633.9,3.2078]
[1736018433112,5.42534303,3634.4,3633.8,0.27523]
[1736018433312,0.27522,3634.0,3633.8,0.27523]
[1736018433719,5.42534303,3634.4,3633.8,0.27523]
[1736018434019,0.27521,3634.1,3633.9,0.27522]
[1736018434318,0.27521,3634.1,3633.7,0.419]
[1736018434513,0.27521,3634.1,3633.9,0.27522]
[1736018434712,0.27522,3634.0,3633.9,0.27522]
[1736018436213,0.27521,3634.1,3633.9,0.27522]
[1736018436623,5.42534303,3634.4,3633.9,0.27522]
[1736018436821,0.27522,3634.0,3633.9,0.27522]
[1736018437022,0.27521,3634.1,3633.9,0.27522]
[1736018437223,0.27521,3634.1,3634.0,0.27522]
[1736018437424,0.27522,3634.0,3633.9,0.27522]
[1736018437717,0.27522,3634.0,3633.8,0.27523]
[1736018437913,0.27522,3634.0,3633.7,0.419]
[1736018438116,0.27522,3634.0,3633.9,0.27522]
[1736018438721,0.27521,3634.1,3633.8,0.27523]
[1736018438923,0.27521,3634.1,3633.9,0.27522]
[1736018439126,0.27522,3634.0,3633.9,0.27522]
[1736018439332,0.27521,3634.1,3633.9,0.27522]
[1736018439827,0.27522,3634.0,3633.9,0.27522]
[1736018443325,2.64684303,3634.4,3633.9,0.27522]
[1736018443526,0.27522,3634.0,3633.9,0.27522]
[1736018444425,0.27521,3634.1,3633.9,0.27522]
[1736018444624,0.27521,3634.1,3634.0,0.27522]
[1736018445519,2.64684303,3634.4,3633.7,6.8828762]
[1736018445927,0.27522,3634.0,3633.9,0.27522]
[1736018446425,0.27521,3634.1,3634.0,0.27521]
[1736018447427,0.27522,3634.0,3633.9,0.27522]
[1736018447635,0.27524,3633.7,3633.6,7.3322762]
[1736018449429,0.27524,3633.7,3633.6,0.8684]
[1736018455446,3.2078,3633.7,3633.2,6.4638762]
[1736018455631,3.2078,3633.7,3633.1,6.4638762]
[1736018455632,2.21754303,3633.5,3633.1,6.4638762]
[1736018455934,2.49282303,3633.2,3633.1,6.4638762]
[1736018456333,3.58082303,3633.2,3633.1,6.4638762]
[1736018456937,0.27528,3633.1,3633.0,0.8255]
[1736018463143,6.51334303,3633.2,3632.7,6.4638762]
[1736018463345,0.27531,3632.8,3632.7,6.4638762]
[1736018465043,0.27531,3632.8,3632.7,5.48243517]
[1736018467243,3.48311,3632.8,3632.7,5.48243517]
[1736018468440,3.48311,3632.8,3632.6,0.834]
[1736018468441,0.27531,3632.7,3632.6,0.834]
[1736018469655,0.27531,3632.7,3632.2,3.48315]
[1736018469656,3.2078,3632.8,3632.2,3.2078]
[1736018469844,0.27534,3632.3,3632.2,3.48315]
[1736018470143,0.27534,3632.3,3632.2,3.2078]
[1736018471245,1.084,3632.5,3632.0,6.4638762]
[1736018471451,0.27536,3632.1,3632.0,6.4638762]
[1736018471943,0.27537,3632.0,3631.9,0.27537]
[1736018473646,1.084,3632.5,3631.7,6.8857762]
[1736018473951,0.27538,3631.9,3631.7,6.8857762]
[1736018474148,0.68836,3632.4,3631.7,6.8857762]
[1736018474346,0.27538,3631.8,3631.7,6.8857762]
[1736018474547,0.27538,3631.8,3631.7,0.4219]
[1736018478555,1.35938,3631.8,3631.7,0.4219]
[1736018479357,1.084,3631.8,3631.5,3.2078]
[1736018479651,0.27543,3631.2,3631.1,3.48323]
[1736018479853,0.27543,3631.2,3631.1,3.2078]
[1736018481758,0.27542,3631.3,3631.1,3.2078]
[1736018482052,0.27542,3631.3,3631.2,0.27542]
[1736018482843,0.27543,3631.2,3631.1,3.48323]
[1736018483048,0.27542,3631.3,3631.2,0.27542]
[1736018483554,0.27543,3631.2,3631.1,3.48323]
[1736018483756,0.27543,3631.2,3631.1,3.2078]
[1736018486249,3.30154303,3631.6,3631.1,3.2078]
[1736018486452,0.27543,3631.3,3631.1,3.2078]
[1736018486650,0.27543,3631.3,3631.2,0.27543]
[1736018486851,1.084,3631.5,3631.1,3.2078]
[1736018487054,1.084,3631.5,3631.1,3.48323]
[1736018487250,2.21754303,3631.3,3631.1,3.2078]
[1736018487450,0.27543,3631.2,3631.1,3.2078]
[1736018489754,0.27543,3631.2,3631.1,3.6265]
[1736018491756,2.21754303,3631.9,3631.1,3.6265]
[1736018492060,0.27541,3631.4,3631.3,0.27542]
[1736018492258,0.27543,3631.3,3631.2,0.27543]
[1736018492457,2.21754303,3631.9,3631.1,3.6265]
[1736018492652,0.27539,3631.7,3631.6,3.48319]
[1736018492960,0.27542,3631.4,3631.2,3.2078]
[1736018493159,2.21754303,3631.9,3631.2,3.2078]
[1736018493358,0.27542,3631.3,3631.2,3.2078]
[1736018494063,0.27542,3631.3,3631.2,3.48323]
[1736018494253,0.27542,3631.3,3631.2,3.2078]
[1736018495663,0.27542,3631.3,3631.2,3.6173]
[1736018497566,1.35542,3631.4,3631.3,0.27542]
[1736018497862,1.35542,3631.4,3631.2,3.89272]
[1736018497863,0.27542,3631.3,3631.2,3.89272]
[1736018498662,0.27542,3631.3,3631.2,3.6173]
[1736018501967,2.49296303,3631.3,3631.2,3.2078]
[1736018502162,3.64806303,3631.3,3631.2,3.2078]
[1736018502367,0.27543,3631.1,3631.0,4.31469182]
[1736018502663,2.49297303,3631.1,3631.0,4.31469182]
[1736018503164,0.27545,3630.9,3630.8,3.2078]
[1736018503667,0.27547,3630.7,3630.6,4.31469182]
[1736018503868,3.29754303,3630.7,3630.6,4.31469182]
[1736018504165,3.57301303,3630.7,3630.6,4.31469182]
[1736018504360,3.57301303,3630.7,3630.5,0.8445]
[1736018504361,3.29754303,3630.7,3630.5,0.8445]
[1736018504566,3.29754303,3630.7,3630.6,3.2078]
[1736018504762,0.27547,3630.6,3630.5,0.8445]
[1736018504960,3.29754303,3630.7,3630.6,0.27547]
[1736018505166,0.27547,3630.6,3630.5,1.11998]
[1736018505365,0.27547,3630.6,3630.5,0.8445]
[1736018505666,3.29754303,3630.7,3630.5,0.8445]
[1736018505967,1.08,3631.3,3630.6,3.2078]
[1736018506168,1.08,3631.3,3631.2,0.27543]
[1736018506560,1.08,3631.3,3631.0,3.2078]
[1736018506561,2.21754303,3631.6,3631.1,1.2794]
[1736018506766,3.29754303,3631.6,3631.5,0.2754]
[1736018507571,3.57294303,3631.6,3631.5,0.2754]
[1736018508061,2.21754303,3631.9,3631.8,0.27538]
[1736018508267,2.21754303,3632.5,3631.8,3.2078]
[1736018508467,2.21754303,3632.5,3632.3,0.27534]
[1736018508468,0.27534,3632.4,3632.3,0.27534]
[1736018508663,1.08,3632.6,3632.5,0.27533]
[1736018509766,1.08,3632.6,3631.9,1.2718]
[1736018509966,0.27534,3632.5,3631.9,1.2718]
[1736018510169,1.08,3632.6,3632.3,4.31469182]
[1736018510471,0.27534,3632.4,3632.3,4.31469182]
[1736018510666,1.08,3632.6,3632.3,4.31469182]
[1736018510860,0.27533,3632.5,3632.3,4.31469182]
[1736018511064,0.27534,3632.4,3632.3,4.31469182]
[1736018511465,0.27534,3632.4,3632.2,4.59004182]
[1736018512271,0.27533,3632.5,3632.3,0.27534]
[1736018512667,0.27534,3632.4,3632.2,4.31469182]
[1736018512969,0.27534,3632.4,3632.3,4.31469182]
[1736018514271,0.27534,3632.4,3632.2,4.59004182]
[1736018514476,2.21754303,3632.5,3632.2,4.31469182]
[1736018514774,0.27534,3632.4,3632.3,0.27534]
[1736018514973,2.21754303,3632.5,3632.2,4.31469182]
[1736018515273,0.27533,3632.5,3632.3,0.27534]
[1736018515470,1.08,3632.6,3632.3,4.31469182]
[1736018515672,1.35532,3632.6,3632.4,0.27533]
[1736018515873,1.35532,3632.6,3632.3,4.31469182]
[1736018515874,1.35532,3632.6,3632.5,0.4098]
[1736018518673,5.42534303,3632.8,3632.5,0.4098]
[1736018518875,1.08,3632.7,3632.6,0.27531]
[1736018519174,1.08,3632.7,3632.6,1.15211]
[1736018519475,1.35531,3632.7,3632.6,1.15212]
[1736018519877,1.35531,3632.7,3632.6,0.8768]
[1736018520176,0.27531,3632.7,3632.6,0.8768]
[1736018524079,0.27531,3632.7,3632.6,1.15212]
[1736018524379,3.30154303,3632.8,3632.6,1.15212]
[1736018524380,3.57685303,3632.8,3632.7,0.27531]
[1736018526674,3.30154303,3632.8,3632.7,0.27531]
[1736018526874,1.084,3632.8,3632.7,0.27531]
[1736018528181,1.35931,3632.8,3632.7,0.27531]
[1736018528575,1.084,3632.8,3632.7,0.27531]
[1736018528876,1.35931,3632.8,3632.7,0.27531]
[1736018531076,1.084,3632.8,3632.6,0.8768]
[1736018531280,0.27531,3632.7,3632.6,1.15212]
[1736018532378,1.35931,3632.8,3632.7,0.27531]
[1736018532583,1.084,3632.8,3632.6,0.8768]
[1736018532786,0.27531,3632.7,3632.6,1.15212]